bitfinex-derivatives/quotes_ETHF0:USTF0_20250112
["timestamp","ask_amount","ask_price","bid_price","bid_amount"]
[1736642915750,0.9004,3285.8,3285.4,0.21315]
[1736642915957,0.21314,3285.6,3285.4,0.21315]
[1736642916348,9.5675387,3285.5,3285.4,0.21315]
[1736642917360,9.5675387,3285.6,3285.2,0.8847]
[1736642917561,9.7806787,3285.6,3285.4,0.21315]
[1736642918159,9.7806787,3285.6,3285.2,0.8847]
[1736642918464,0.21315,3285.5,3285.2,1.09786]
[1736642919458,8.32914032,3285.4,3285.2,1.09786]
[1736642920054,0.21316,3285.3,3285.1,3.6416]
[1736642920259,0.9536,3285.3,3285.1,3.85477]
[1736642920461,1.16676,3285.3,3285.1,3.85477]
[1736642920961,0.9536,3285.3,3285.1,3.6416]
[1736642921162,8.32914032,3285.4,3285.3,0.21316]
[1736642922970,8.32914032,3285.4,3285.3,2.32733547]
[1736642924166,3.2078,3286.0,3285.3,2.11417547]
[1736642924365,0.21312,3285.9,3285.8,0.21312]
[1736642924767,3.42092,3286.0,3285.9,0.21312]
[1736642925364,3.2078,3286.0,3285.9,0.21312]
[1736642926367,0.21309,3286.4,3286.3,0.21309]
[1736642926665,11.53694032,3286.6,3286.0,0.4683]
[1736642926666,0.21308,3286.5,3286.0,0.4683]
[1736642926868,0.21308,3286.5,3286.4,0.21309]
[1736642927269,3.2078,3286.6,3286.5,0.21308]
[1736642928272,4.1101,3287.0,3286.3,0.4333]
[1736642928464,0.21305,3286.9,3286.7,0.21306]
[1736642928664,4.1101,3287.0,3286.3,0.4333]
[1736642928865,0.21306,3286.9,3286.7,0.21307]
[1736642929174,4.1101,3287.0,3286.4,3.2078]
[1736642929376,4.32315,3287.0,3286.7,0.21306]
[1736642929573,4.1101,3287.0,3286.4,3.2078]
[1736642929778,0.21306,3286.9,3286.6,0.21307]
[1736642929977,0.21306,3286.8,3286.6,0.21307]
[1736642930182,4.1101,3287.0,3286.4,3.2078]
[1736642930481,0.21306,3286.9,3286.7,0.21306]
[1736642930666,4.32315,3287.0,3286.7,0.21306]
[1736642931378,0.21306,3286.9,3286.4,3.2078]
[1736642931568,0.21306,3286.9,3286.6,0.21307]
[1736642931971,12.65229032,3287.0,3286.7,0.21306]
[1736642932275,12.43924032,3287.0,3286.8,0.21306]
[1736642932576,12.65229032,3287.0,3286.7,0.21306]
[1736642932765,4.32315,3287.0,3286.7,0.21306]
[1736642933168,0.21306,3286.9,3286.6,0.21307]
[1736642933366,4.1101,3287.0,3286.7,0.21306]
[1736642933367,4.32315,3287.0,3286.7,0.21306]
[1736642934373,4.32315,3287.0,3286.8,0.21306]
[1736642934581,4.1101,3287.0,3286.4,3.2078]
[1736642934974,4.1101,3287.0,3286.9,0.21305]
[1736642935476,3.2078,3287.0,3286.9,0.21305]
[1736642936376,3.2078,3287.0,3286.8,0.21306]
[1736642936580,3.2078,3287.0,3286.4,3.2078]
[1736642936581,3.42085,3287.0,3286.4,3.2078]
[1736642936783,3.42085,3287.0,3286.7,0.21306]
[1736642938483,3.42085,3287.0,3286.4,3.2078]
[1736642938675,3.42085,3287.0,3286.8,0.21306]
[1736642938875,3.2078,3287.0,3286.4,3.2078]
[1736642939077,0.21306,3286.9,3286.6,0.21307]
[1736642939581,0.21306,3286.9,3286.4,3.2078]
[1736642939776,0.21306,3286.9,3286.6,0.21307]
[1736642941081,0.21306,3286.9,3286.5,0.4476]
[1736642941383,0.21306,3286.9,3286.7,0.21307]
[1736642941586,3.2078,3287.0,3286.9,0.21305]
[1736642942080,3.2078,3287.4,3287.3,0.21303]
[1736642945680,3.2078,3287.4,3287.2,0.21303]
[1736642945984,3.2078,3287.4,3287.3,0.21303]
[1736642949783,3.42082,3287.4,3287.3,0.21303]
[1736642949992,0.21304,3287.2,3287.0,0.4428]
[1736642950187,0.21304,3287.2,3287.1,0.21304]
[1736642950586,0.21304,3287.1,3287.0,0.21305]
[1736642950774,0.4456,3287.2,3286.8,3.6643]
[1736642950983,0.21305,3286.9,3286.8,3.42086]
[1736642951183,0.21305,3287.0,3286.9,0.21305]
[1736642951491,0.44564,3287.2,3287.1,0.21304]
[1736642952482,0.21305,3287.1,3287.0,0.21305]
[1736642952684,0.21305,3287.0,3286.9,0.21305]
[1736642952885,0.2326,3287.2,3286.8,3.2078]
[1736642953087,0.2326,3287.2,3286.5,2.58787547]
[1736642953088,3.2078,3287.0,3286.4,3.2078]
[1736642953687,3.2078,3287.0,3286.5,0.441]
[1736642953887,0.21306,3286.8,3286.7,0.21307]
[1736642954697,3.2078,3287.0,3286.5,0.441]
[1736642954991,0.4734,3286.7,3286.4,3.2078]
[1736642955292,0.4682,3286.6,3286.4,3.2078]
[1736642955486,0.4682,3286.6,3286.5,0.21308]
[1736642955686,0.21308,3286.5,3286.2,0.9066]
[1736642956294,0.21308,3286.5,3286.4,0.21309]
[1736642957293,0.21309,3286.3,3286.2,1.1197]
[1736642957496,0.21309,3286.4,3286.3,0.21309]
[1736642958492,0.2131,3286.3,3286.2,0.2131]
[1736642958688,0.21308,3286.5,3286.1,0.2131]
[1736642958882,0.2131,3286.3,3286.2,0.2131]
[1736642959193,0.942,3286.6,3285.9,3.2078]
[1736642959389,0.6838,3286.2,3286.1,0.2131]
[1736642959990,0.4707,3286.2,3286.1,0.2131]
[1736642960394,0.4707,3286.2,3285.9,3.2078]
[1736642960594,0.21311,3286.0,3285.9,3.2078]
[1736642960895,0.21311,3286.1,3285.9,3.42092]
[1736642961490,0.4707,3286.2,3286.1,0.21311]
[1736642961684,0.4707,3286.2,3285.9,3.2078]
[1736642961999,0.6838,3286.2,3286.0,0.21311]
[1736642963798,0.6838,3286.2,3286.1,0.21311]
[1736642963799,0.4707,3286.2,3286.1,0.21311]
[1736642967799,0.4707,3286.2,3286.0,1.3379]
[1736642968003,0.6838,3286.2,3286.0,0.67901]
[1736642968298,0.21312,3286.0,3285.8,0.21312]
[1736642969298,0.21312,3285.9,3285.7,3.17313]
[1736642969800,0.21312,3285.9,3285.7,2.96]
[1736642969801,9.5675387,3285.9,3285.7,2.96]
[1736642970096,0.21313,3285.8,3285.7,2.96]
[1736642971202,9.5675387,3285.9,3285.8,0.21313]
[1736642972407,8.353981,3286.1,3285.7,2.96]
[1736642972707,8.353981,3286.1,3286.0,0.21311]
[1736642975607,0.2131,3286.2,3285.7,2.96]
[1736642975805,0.2131,3286.2,3286.1,0.21311]
[1736642976703,0.2131,3286.2,3285.7,2.96]
[1736642976899,0.21311,3286.1,3286.0,0.21311]
[1736642978609,0.21313,3285.8,3285.7,3.17313]
[1736642979503,3.74055,3286.3,3285.7,2.96]
[1736642979710,0.21312,3285.9,3285.8,0.21312]
[1736642980609,3.2078,3286.3,3285.7,2.96]
[1736642980808,0.21312,3286.0,3285.9,0.21311]
[1736642981111,0.21313,3285.9,3285.8,0.21312]
[1736642982307,3.2078,3286.3,3285.7,2.96]
[1736642982509,0.21313,3285.8,3285.7,3.17312]
[1736642983616,0.21313,3285.8,3285.7,0.21312]
[1736642983819,2.11417547,3286.0,3285.4,0.8923]
[1736642984020,0.9136,3285.7,3285.4,0.8923]
[1736642984218,0.9136,3285.7,3285.6,0.21314]
[1736642984219,1.12674,3285.7,3285.6,0.21314]
[1736642985014,0.9136,3285.7,3285.4,0.8923]
[1736642985324,0.9136,3285.7,3285.4,0.21315]
[1736642985624,0.21315,3285.5,3285.4,0.21315]
[1736642985821,0.21315,3285.5,3285.3,0.68076]
[1736642986021,0.21315,3285.5,3285.3,0.21316]
[1736642986622,0.21315,3285.5,3285.1,4.3455]
[1736642986827,0.21315,3285.5,3285.3,0.21315]
[1736642987217,7.15341086,3285.4,3285.3,0.21315]
[1736642987421,7.15341086,3285.4,3285.1,4.3455]
[1736642988132,7.36656086,3285.4,3285.3,0.21316]
[1736642988425,7.15341086,3285.4,3285.3,0.21316]
[1736642989221,7.36656086,3285.4,3285.3,0.21316]
[1736642990725,7.15341086,3285.4,3285.3,0.21316]
[1736642992031,0.21315,3285.5,3285.3,0.21316]
[1736642993222,0.9136,3285.7,3285.1,1.3855]
[1736642993423,1.12674,3285.7,3285.1,1.3855]
[1736642993619,1.12674,3285.7,3285.5,0.21314]
[1736642993830,1.12674,3285.7,3285.6,0.4369]
[1736642994824,0.9136,3285.7,3285.3,0.21316]
[1736642995025,0.21315,3285.5,3285.3,0.21316]
[1736642999239,3.2078,3285.6,3285.2,0.4369]
[1736642999526,0.21315,3285.5,3285.3,0.21316]
[1736642999832,0.21315,3285.4,3285.3,0.21316]
[1736643000230,10.36419016,3285.6,3285.3,0.21316]
[1736643000627,0.21315,3285.5,3285.2,0.4369]
[1736643000829,0.21315,3285.5,3285.4,0.21315]
[1736643001733,0.21316,3285.4,3285.2,0.65006]
[1736643002035,10.36415016,3285.6,3285.2,0.65006]
[1736643002239,0.21315,3285.4,3285.2,0.65006]
[1736643002925,10.36415016,3285.6,3285.1,0.9179]
[1736643003131,0.21316,3285.2,3285.1,0.9179]
[1736643003940,10.36415016,3285.6,3285.1,1.13107]
[1736643003941,0.21316,3285.3,3285.1,1.13107]
[1736643004236,0.21316,3285.2,3285.1,1.13107]
[1736643005237,0.21316,3285.2,3285.1,0.9179]
[1736643005834,0.21316,3285.3,3285.1,1.13107]
[1736643007244,8.353981,3285.2,3285.1,1.13107]
[1736643008639,8.567141,3285.2,3285.1,1.13107]
[1736643008837,8.567141,3285.2,3285.1,0.9179]
[1736643009136,8.567141,3285.2,3285.1,1.13107]
[1736643010432,8.567141,3285.2,3285.1,0.9179]
[1736643010637,0.21318,3285.0,3284.9,0.69228]
[1736643011040,0.2132,3284.7,3284.6,0.2132]
[1736643011243,0.21319,3284.8,3284.6,0.4534]
[1736643011444,0.2132,3284.7,3284.6,0.4534]
[1736643011741,0.2132,3284.7,3284.6,0.6666]
[1736643011944,0.21319,3284.8,3284.6,0.6666]
[1736643012442,9.7807287,3284.8,3284.6,0.6666]
[1736643013133,9.5675387,3284.8,3284.7,0.2132]
[1736643013533,7.16890992,3284.9,3284.7,0.2132]
[1736643013736,7.16890992,3284.9,3284.8,0.21319]
[1736643014639,3.2078,3285.2,3284.7,2.11417547]
[1736643014640,3.42097,3285.2,3284.7,2.11417547]
[1736643014845,3.42097,3285.2,3285.1,0.21317]
[1736643016243,3.2078,3285.2,3285.1,0.21317]
[1736643016640,3.42096,3285.2,3285.1,0.21317]
[1736643016835,3.42096,3285.2,3285.0,0.21317]
[1736643016836,3.2078,3285.2,3285.0,0.21317]
[1736643017041,0.21317,3285.1,3285.0,0.21317]
[1736643017446,3.2078,3285.2,3284.7,2.11417547]
[1736643017841,3.2078,3285.2,3285.0,0.21317]
[1736643017842,0.21317,3285.1,3285.0,0.21317]
[1736643018347,3.42097,3285.2,3285.1,0.21317]
[1736643019937,0.21318,3285.1,3284.9,0.21318]
[1736643020237,0.21319,3284.9,3284.8,0.21319]
[1736643020645,3.2078,3285.2,3284.6,2.96]
[1736643020947,3.2078,3285.2,3284.9,0.21318]
[1736643020948,0.21318,3285.0,3284.9,0.21318]
[1736643021246,3.2078,3285.2,3284.6,2.96]
[1736643021555,0.21317,3285.1,3285.0,0.21317]
[1736643021951,7.38207992,3285.2,3285.1,0.21317]
[1736643022654,0.21317,3285.2,3285.1,0.21317]
[1736643023453,7.16890992,3285.3,3285.2,0.21316]
[1736643024541,0.21315,3285.4,3284.8,3.2078]
[1736643024745,0.21315,3285.4,3285.2,0.21316]
[1736643025151,0.21315,3285.4,3285.3,0.21316]
[1736643025752,0.21315,3285.4,3284.8,3.2078]
[1736643025955,0.21315,3285.4,3285.2,0.21316]
[1736643026549,0.21317,3285.2,3285.0,0.21317]
[1736643026752,0.21318,3285.1,3284.4,5.85500547]
[1736643026947,0.9031,3285.1,3284.4,3.74083]
[1736643027152,0.2132,3284.8,3284.6,0.2132]
[1736643027349,0.2132,3284.7,3284.6,0.2132]
[1736643028056,0.4487,3285.0,3284.4,3.2078]
[1736643028352,0.66581,3284.6,3284.4,3.42102]
[1736643028554,0.66581,3284.6,3284.5,0.21321]
[1736643029358,0.66581,3284.6,3284.4,0.21321]
[1736643030757,7.1755336,3284.5,3284.4,0.21321]
[1736643035752,7.6281336,3284.6,3284.5,0.21321]
[1736643036451,7.8413336,3284.6,3284.5,0.21321]
[1736643037261,0.6658,3284.6,3284.5,0.21321]
[1736643038360,0.4526,3284.6,3284.5,0.21321]
[1736643040358,0.4526,3284.6,3284.4,0.21321]
[1736643040563,0.4463,3284.5,3284.2,0.4404]
[1736643040864,0.21322,3284.3,3284.2,0.65363]
[1736643041057,0.21322,3284.3,3284.2,0.21323]
[1736643041558,2e-05,3284.4,3284.1,3.2078]
[1736643041759,0.4669,3284.2,3284.1,3.42103]
[1736643042061,0.4381,3284.2,3284.1,3.42103]
[1736643042463,0.3637,3284.2,3284.1,3.42103]
[1736643043359,7.1755536,3284.4,3284.3,0.21322]
[1736643045060,7.3887736,3284.4,3284.2,0.21323]
[1736643045963,7.1755536,3284.4,3284.1,3.2078]
[1736643046159,7.1755536,3284.4,3284.3,0.21322]
[1736643046363,2e-05,3284.4,3284.3,0.21322]
[1736643049558,2e-05,3284.4,3284.3,5.65762]
[1736643049759,7.1747536,3285.0,3284.9,0.21318]
[1736643049954,7.1747536,3285.0,3284.9,3.42098]
[1736643050767,21.70416822,3285.4,3284.9,3.2078]
[1736643050768,0.21315,3285.4,3284.9,3.2078]
[1736643050963,0.21315,3285.4,3285.2,0.21316]
[1736643051161,2.0987,3285.6,3285.2,0.21316]
[1736643051667,0.21316,3285.4,3285.2,0.21316]
[1736643052460,0.21315,3285.5,3285.3,0.21316]
[1736643053761,1.10884,3285.6,3285.3,0.21315]
[1736643053965,0.21315,3285.5,3285.3,0.21315]
[1736643055273,0.21316,3285.3,3285.1,0.21317]
[1736643055457,2.11417547,3285.3,3284.9,3.2078]
[1736643055766,0.21319,3284.9,3284.7,0.21319]
[1736643055964,0.9115,3284.8,3284.7,0.21319]
[1736643057659,0.21317,3285.1,3284.2,0.53308]
[1736643057861,1.11937,3285.1,3284.8,0.21319]
[1736643058262,0.9062,3285.1,3284.4,3.2078]
[1736643058666,4.62395,3285.4,3285.1,0.21317]
[1736643059370,4.62395,3285.4,3285.2,0.21316]
[1736643060664,4.62395,3285.4,3285.3,0.4601]
[1736643060873,12.977931,3285.4,3285.3,0.4601]
[1736643061269,12.764781,3285.4,3285.3,0.67326]
[1736643061775,4.4108,3285.4,3285.3,0.67326]
[1736643062172,4.62395,3285.4,3285.3,0.4601]
[1736643062377,4.4108,3285.4,3285.3,0.4601]
[1736643062879,4.62395,3285.4,3285.3,0.4601]
[1736643064081,1.41615,3285.4,3285.3,0.4601]
[1736643065075,1.203,3285.4,3284.8,3.2078]
[1736643065270,0.21318,3284.9,3284.8,3.2078]
[1736643066275,0.67848,3284.9,3284.8,3.2078]
[1736643075681,0.21319,3284.8,3284.6,0.2132]
[1736643076775,0.4653,3284.9,3284.4,0.9367]
[1736643076982,0.21321,3284.6,3284.4,0.9367]
[1736643077177,0.4653,3284.9,3284.4,0.9367]
[1736643077380,0.4321,3284.5,3284.0,3.6766]
[1736643077684,0.21323,3284.2,3284.1,0.4791]
[1736643078290,0.21323,3284.3,3284.1,0.69234]
[1736643078990,7.16555717,3284.2,3284.1,0.69234]
[1736643079191,7.16555717,3284.2,3283.9,0.21325]
[1736643079192,0.21324,3284.1,3283.9,0.21325]
[1736643079390,7.37878717,3284.2,3284.0,0.21324]
[1736643083493,7.16555717,3284.2,3284.1,0.21324]
[1736643083692,7.16555717,3284.2,3284.0,0.21324]
[1736643083892,0.21323,3284.3,3284.0,0.21324]
[1736643084393,0.21323,3284.2,3284.0,0.21324]
[1736643085384,0.21323,3284.2,3283.9,0.4538]
[1736643085584,7.16555717,3284.4,3283.9,0.4538]
[1736643085794,0.21324,3284.0,3283.9,0.4538]
[1736643092593,0.4516,3284.1,3283.7,0.4553]
[1736643092795,0.21325,3283.8,3283.7,0.4553]
[1736643102899,0.21325,3283.8,3283.7,0.66856]
[1736643103605,0.21325,3283.8,3283.7,0.4553]
[1736643103908,0.21325,3283.8,3283.7,0.66856]
[1736643105204,0.21325,3283.8,3283.7,0.4553]
[1736643106706,0.21325,3283.8,3283.7,0.66856]
[1736643107013,0.12685,3283.8,3283.7,0.66856]
[1736643107315,1.9089967,3284.1,3283.7,0.4553]
[1736643107515,10.37335717,3284.2,3284.0,0.21324]
[1736643107516,11.58918387,3284.2,3284.0,0.21324]
[1736643107705,10.37335717,3284.2,3284.1,0.4488]
[1736643107907,10.37335717,3284.2,3284.1,0.66204]
[1736643108412,3.2078,3284.2,3284.1,1.6646367]
[1736643108811,7.16555717,3284.4,3284.3,0.21322]
[1736643109610,9.36355074,3284.6,3284.4,0.21321]
[1736643109611,8.38135387,3284.6,3284.4,0.21321]
[1736643109813,8.38135387,3284.6,3284.5,0.4329]
[1736643110915,1.2157967,3284.6,3284.5,0.4329]
[1736643111317,0.2132,3284.6,3284.5,0.4329]
[1736643112218,8.36095404,3284.7,3284.6,0.2132]
[1736643112418,8.36095404,3284.7,3284.5,0.4329]
[1736643112619,7.17066195,3284.6,3284.5,0.6461]
[1736643114024,7.17066195,3284.7,3284.6,0.2132]
[1736643116228,14.35194522,3284.8,3284.6,0.2132]
[1736643116834,11.14414522,3284.8,3284.5,0.64611]
[1736643117019,11.14414522,3284.8,3284.5,0.4329]
[1736643117020,11.56875404,3284.8,3284.5,0.4329]
[1736643117329,11.56875404,3284.8,3284.7,0.2132]
[1736643117931,11.56875404,3284.8,3284.7,0.6785]
[1736643118330,11.56875404,3284.8,3284.7,0.4653]
[1736643118523,0.21319,3284.9,3284.7,0.4653]
[1736643118727,0.21319,3284.8,3284.7,0.4653]
[1736643119029,9.7807287,3284.9,3284.7,0.4653]
[1736643119237,9.7807287,3284.9,3284.7,0.6785]
[1736643119425,9.7807287,3284.9,3284.7,0.4653]
[1736643119934,9.7807287,3284.9,3284.7,0.6785]
[1736643121633,0.21319,3284.8,3284.7,0.4653]
[1736643127333,7.38995094,3284.8,3284.7,0.4653]
[1736643127536,7.17676094,3284.8,3284.7,0.6785]
[1736643128734,7.17676094,3285.1,3284.9,0.21318]
[1736643128934,7.82534094,3285.1,3284.9,0.21318]
[1736643129330,7.61216094,3285.1,3284.7,0.4653]
[1736643129530,7.17676094,3285.1,3285.0,0.21318]
[1736643131238,7.17676094,3285.1,3284.7,0.4653]
[1736643131239,3.2078,3285.2,3285.1,0.21317]
[1736643131438,7.17676094,3285.5,3285.3,0.21315]
[1736643131637,7.38991094,3285.5,3285.4,0.9055]
[1736643132439,0.21315,3285.5,3285.4,0.9055]
[1736643133338,1.21488863,3285.5,3285.4,0.9055]
[1736643135538,1.00173863,3285.5,3285.4,1.11865]
[1736643136336,1.00173863,3285.5,3285.4,0.9055]
[1736643136544,1.21487863,3285.5,3285.4,0.9055]
[1736643137732,8.39163957,3285.5,3285.4,0.9055]
[1736643140143,1.00173863,3285.5,3285.4,1.11865]
[1736643140536,1.21487863,3285.5,3285.4,0.9055]
[1736643142943,1.00173863,3285.5,3285.4,0.9055]
[1736643143240,1.00173863,3285.5,3285.4,1.11865]
[1736643144335,3.2078,3285.6,3285.5,0.21314]
[1736643145042,3.2078,3285.6,3285.1,0.4623]
[1736643145236,1.21489863,3285.2,3285.1,0.4413]
[1736643145842,1.21489863,3285.2,3285.1,0.65447]
[1736643145843,1.00173863,3285.2,3285.1,0.65447]
[1736643147536,0.21316,3285.3,3285.2,0.21316]
[1736643147944,1.21488863,3285.4,3285.3,0.21316]
[1736643148242,4.20953863,3285.6,3285.1,1.44303863]
[1736643148447,4.20953863,3285.6,3285.5,0.21314]
[1736643148938,3.2078,3285.6,3285.5,1.21487863]
[1736643149147,7.17676094,3285.8,3285.7,0.21313]
[1736643149343,7.17676094,3285.8,3285.7,1.21486863]
[1736643149545,9.5675387,3285.8,3285.7,1.00173863]
[1736643149849,9.5675387,3285.8,3285.7,1.21486863]
[1736643150643,7.16346528,3285.9,3285.8,0.21312]
[1736643153844,9.04209616,3286.0,3285.8,0.21312]
[1736643154045,0.4731,3285.9,3285.8,0.21312]
[1736643154541,0.68622,3285.9,3285.7,0.21313]
[1736643155049,0.4731,3285.9,3285.8,0.21312]
[1736643155238,8.57048616,3286.0,3285.8,0.21312]
[1736643155744,8.35737616,3286.0,3285.8,0.21312]
[1736643156446,8.35737616,3286.0,3285.7,0.21313]
[1736643156747,8.35737616,3286.0,3285.6,1.3488]
[1736643156748,0.21313,3285.8,3285.6,1.56193]
[1736643156949,0.21312,3285.8,3285.6,0.64593]
[1736643157157,0.4508,3285.9,3285.6,0.4328]
[1736643157345,0.4508,3285.9,3285.7,0.21313]
[1736643157346,0.4586,3285.8,3285.7,0.21313]
[1736643157651,11.77829616,3286.0,3285.6,0.4328]
[1736643157845,12.23609616,3286.0,3285.8,0.21312]
[1736643158152,12.02297616,3286.0,3285.7,0.8891]
[1736643158346,0.21312,3285.9,3285.6,0.64593]
[1736643158545,12.02297616,3286.0,3285.6,0.64593]
[1736643158546,0.66363,3285.8,3285.6,0.64593]
[1736643159443,0.4505,3285.8,3285.7,0.21313]
[1736643159646,3.87871,3286.0,3285.8,0.21312]
[1736643160145,3.87871,3286.0,3285.6,0.4328]
[1736643160146,0.21312,3285.9,3285.7,0.21313]
[1736643160946,3.6656,3286.0,3285.7,0.21313]
[1736643161252,0.21312,3285.9,3285.7,0.21313]
[1736643161848,3.87872,3286.0,3285.7,0.21313]
[1736643162051,3.42092,3286.0,3285.6,0.4328]
[1736643162548,3.42092,3286.0,3285.8,0.21312]
[1736643163247,0.21312,3286.0,3285.8,0.21312]
[1736643165438,19.84216172,3286.1,3285.9,0.21312]
[1736643165646,18.94406172,3286.1,3285.9,0.21312]
[1736643165848,18.94406172,3286.1,3286.0,0.917]
[1736643166043,18.94406172,3286.1,3286.0,1.3554]
[1736643166549,3.42091,3286.1,3286.0,1.3554]
[1736643168148,0.21311,3286.1,3286.0,1.3554]
[1736643177051,8.58811157,3286.1,3286.0,1.3554]
[1736643178256,8.37500157,3286.1,3286.0,1.56851]
[1736643178949,11.58280157,3286.2,3286.0,1.3554]
[1736643179153,11.58280157,3286.2,3286.1,0.21311]
[1736643180956,11.58280157,3286.2,3286.0,1.3554]
[1736643181151,11.79590157,3286.2,3286.0,1.56851]
[1736643181356,11.58280157,3286.2,3286.1,0.21311]
[1736643181657,11.58280157,3286.2,3286.1,1.21443577]
[1736643182047,8.37500157,3286.2,3286.1,1.21443577]
[1736643182259,7.17804034,3286.2,3286.1,1.00132577]
[1736643182459,7.17804034,3286.2,3286.1,1.21443577]
[1736643183656,7.17804034,3286.3,3286.2,0.2131]
[1736643185457,0.21308,3286.6,3286.5,0.21308]
[1736643185859,0.21308,3286.5,3286.4,1.21440577]
[1736643186863,0.21308,3286.6,3286.5,0.21308]
[1736643187054,0.21308,3286.6,3286.5,1.11438]
[1736643187254,0.21308,3286.6,3286.5,1.57358]
[1736643187455,3.2078,3286.7,3286.5,1.3605]
[1736643187654,3.42087,3286.7,3286.6,0.21307]
[1736643187854,0.21307,3286.6,3286.5,1.57358]
[1736643188061,3.2078,3286.7,3286.5,1.57358]
[1736643188248,3.42087,3286.7,3286.5,1.57358]
[1736643188661,0.21307,3286.7,3286.5,1.57358]
[1736643188861,3.2078,3286.8,3286.5,1.3605]
[1736643189060,0.21307,3286.6,3286.5,1.3605]
[1736643189553,3.2078,3286.8,3286.5,1.3605]
[1736643189755,3.2078,3286.8,3286.0,3.2078]
[1736643189756,1.00132577,3286.7,3286.0,3.2078]
[1736643189954,1.00132577,3286.5,3286.1,0.4583]
[1736643190156,0.2131,3286.2,3286.1,0.4583]
[1736643192258,0.2131,3286.2,3286.1,0.67141]
[1736643192557,0.2131,3286.2,3286.1,0.4583]
[1736643192952,0.2131,3286.2,3286.1,0.67141]
[1736643193349,12.99045558,3286.3,3286.2,0.2131]
[1736643193549,9.56955558,3286.3,3286.2,0.2131]
[1736643193752,9.78264558,3286.3,3286.2,0.2131]
[1736643194250,9.56955558,3286.3,3286.2,0.2131]
[1736643194952,8.37708766,3286.3,3286.2,0.2131]
[1736643200362,8.59017766,3286.4,3286.3,0.21309]
[1736643200764,8.37708766,3286.4,3286.3,0.21309]
[1736643203065,8.37708766,3286.4,3286.3,1.21441577]
[1736643203367,8.37708766,3286.4,3286.3,4.42221577]
[1736643203762,7.17878546,3286.4,3286.3,4.42221577]
[1736643203963,7.17878546,3286.4,3286.3,1.21441577]
[1736643205674,7.17878546,3286.5,3286.3,1.00132577]
[1736643205973,7.17878546,3286.5,3286.4,0.21309]
[1736643210067,3.87016,3286.8,3286.7,0.21307]
[1736643210774,3.2078,3286.8,3286.7,0.67387]
[1736643211084,3.2078,3286.8,3286.7,1.54217]
[1736643211379,15.13127952,3286.8,3286.7,1.54217]
[1736643211571,11.92347952,3286.8,3286.7,1.54217]
[1736643215274,11.92347952,3286.8,3286.7,2.54349577]
[1736643215478,17.25759314,3286.8,3286.7,13.71129577]
[1736643215683,8.63310092,3286.8,3286.7,13.71129577]
[1736643215977,0.19569092,3286.8,3286.7,13.71129577]
[1736643216182,18.57763851,3287.0,3286.9,2.21570154]
[1736643216372,6.80254082,3287.0,3286.9,3.41670154]
[1736643216572,3.2078,3288.5,3287.6,2.96]
[1736643216573,0.21297,3288.2,3287.6,2.96]
[1736643216886,3.04242728,3288.2,3288.0,0.21298]
[1736643217185,0.4397,3288.1,3288.0,0.21298]
[1736643217375,0.4397,3288.1,3288.0,2.32506258]
[1736643226876,4.30391728,3288.1,3288.0,2.11208258]
[1736643227176,4.09093728,3288.1,3287.9,0.21299]
[1736643227377,3.48022728,3288.0,3287.9,0.21299]
[1736643227677,3.48022728,3288.0,3287.9,2.32507258]
[1736643233390,3.48022728,3288.0,3287.9,0.21299]
[1736643233791,3.48022728,3288.0,3287.6,2.96]
[1736643233995,3.04242728,3287.7,3287.6,2.96]
[1736643234300,2.54242728,3287.7,3287.6,3.17301]
[1736643234606,2.65223728,3287.7,3287.6,3.17301]
[1736643235018,2.15223728,3287.7,3287.6,3.17301]
[1736643235503,2.12343728,3287.7,3287.6,3.17301]
[1736643238105,2.12343728,3287.7,3287.6,0.21301]
[1736643239308,2.12343728,3287.7,3287.6,1.21312704]
[1736643241715,2.55733728,3287.7,3287.6,1.21312704]
[1736643244814,1.54342728,3287.7,3287.6,1.21312704]
[1736643249112,2.12343728,3287.7,3287.6,1.21312704]
[1736643253713,1.54342728,3287.7,3287.6,1.21312704]
[1736643254422,1.07342728,3287.7,3287.6,1.21312704]
[1736643254727,1.15343728,3287.7,3287.6,1.21312704]
[1736643258317,1.36643728,3287.7,3287.6,0.21301]
[1736643258627,1.15343728,3287.7,3287.6,0.21301]
[1736643259726,1.36643728,3287.7,3287.6,0.21301]
[1736643260231,4.57423728,3287.7,3287.6,0.21301]
[1736643260431,0.21302,3287.5,3287.4,0.21302]
[1736643260627,0.78644728,3287.5,3287.4,0.21302]
[1736643260824,0.21302,3287.4,3287.3,0.21302]
[1736643261121,1.10602,3287.4,3287.3,0.21302]
[1736643261324,1.67944728,3287.4,3287.3,0.21303]
[1736643261524,0.21303,3287.3,3287.2,0.21303]
[1736643261726,1.62733728,3287.3,3287.2,0.21303]
[1736643264234,1.84036728,3287.3,3287.2,0.21303]
[1736643264532,0.21305,3286.9,3286.8,0.21306]
[1736643265031,1.15343728,3286.9,3286.8,0.21306]
[1736643265533,2.07013728,3286.9,3286.4,5.32147556]
[1736643265730,0.57342728,3286.5,3286.4,6.01186556]
[1736643266417,0.4397,3286.8,3286.7,0.21307]
[1736643266827,1.01971,3286.8,3286.7,0.21307]
[1736643270336,1.23277,3286.8,3286.7,0.21307]
[1736643271026,1.01971,3286.8,3286.7,0.21307]
[1736643272836,0.58001,3286.8,3286.7,0.21307]
[1736643273141,3.2078,3287.1,3286.7,0.21307]
[1736643273142,3.2078,3287.1,3286.7,2.11367556]
[1736643273441,1.10892,3287.5,3287.4,0.21302]
[1736643274134,0.8959,3287.5,3287.4,0.21302]
[1736643274934,0.4314,3287.5,3287.4,0.21302]
[1736643275335,0.64441,3287.5,3287.4,0.21302]
[1736643275544,1.08351,3287.5,3287.4,0.21302]
[1736643276139,0.8705,3287.5,3287.4,0.21302]